bitfinex/quotes_BTCUSD_20230106
["timestamp","ask_amount","ask_price","bid_price","bid_amount"]
[1672998211442,0.09226365,16788.0,16787.0,11.27521523]
[1672998211690,0.09226365,16788.0,16787.0,11.41421523]
[1672998211973,0.09226365,16788.0,16787.0,10.61097667]
[1672998212227,0.09226365,16788.0,16787.0,10.57134017]
[1672998212750,0.09226365,16788.0,16787.0,11.17313958]
[1672998213243,0.09226365,16788.0,16787.0,10.57134017]
[1672998213507,0.09226365,16788.0,16787.0,10.9709198]
[1672998213818,0.09226365,16788.0,16787.0,11.1109198]
[1672998214022,0.09226365,16788.0,16787.0,10.8109198]
[1672998214523,0.09226365,16788.0,16787.0,11.1109198]
[1672998218603,0.09226365,16788.0,16787.0,10.9109198]
[1672998219373,0.09226365,16788.0,16787.0,10.37234017]
[1672998219628,0.09226365,16788.0,16787.0,10.75097667]
[1672998219889,0.09226365,16788.0,16787.0,11.01903943]
[1672998220176,0.09226365,16788.0,16787.0,10.75097667]
[1672998220636,0.09226365,16788.0,16787.0,10.61097667]
[1672998220927,0.09226365,16788.0,16787.0,10.74997667]
[1672998221176,0.09226365,16788.0,16787.0,10.61097667]
[1672998221466,0.09226365,16788.0,16787.0,11.01803943]
[1672998221943,0.09226365,16788.0,16787.0,10.74997667]
[1672998222934,0.09226365,16788.0,16787.0,11.85590707]
[1672998223671,0.09226365,16788.0,16787.0,12.45590707]
[1672998224712,0.09226365,16788.0,16787.0,11.85590707]
[1672998224964,0.09226365,16788.0,16787.0,12.45590707]
[1672998225276,0.09226365,16788.0,16787.0,11.85590707]
[1672998226237,0.09226365,16788.0,16787.0,12.45590707]
[1672998227525,0.00370804,16789.0,16787.0,12.45590707]
[1672998227834,0.00370804,16789.0,16788.0,2.68396967]
[1672998228083,0.00370804,16789.0,16788.0,3.87529567]
[1672998228598,0.00370804,16789.0,16788.0,11.07529567]
[1672998229462,0.00370804,16789.0,16788.0,11.21529567]
[1672998229719,0.00370804,16789.0,16788.0,11.51529567]
[1672998230236,0.00370804,16789.0,16788.0,11.21529567]
[1672998230758,0.00370804,16789.0,16788.0,11.51529567]
[1672998231276,0.00370804,16789.0,16788.0,11.2155984]
[1672998231531,0.00370804,16789.0,16788.0,11.5155984]
[1672998231830,0.08313426,16789.0,16788.0,11.5155984]
[1672998234922,0.08313426,16789.0,16788.0,11.6942349]
[1672998235188,0.08313426,16789.0,16788.0,11.5155984]
[1672998235450,0.08313426,16789.0,16788.0,11.6942349]
[1672998237556,0.08313426,16789.0,16788.0,12.88818257]
[1672998237828,0.08313426,16789.0,16788.0,13.46083739]
[1672998238594,0.08313426,16789.0,16788.0,13.37354671]
[1672998238858,0.08313426,16789.0,16788.0,12.68199095]
[1672998239110,0.08313426,16789.0,16788.0,12.54199095]
[1672998239365,0.08313426,16789.0,16788.0,12.68199095]
[1672998241557,0.08313426,16789.0,16788.0,12.41392819]
[1672998242080,0.08303729,16789.0,16788.0,12.41392819]
[1672998245168,0.08303729,16789.0,16788.0,12.02928163]
[1672998245424,0.08303729,16789.0,16788.0,12.86118077]
[1672998245682,0.08303729,16789.0,16788.0,12.72114762]
[1672998245931,0.08303729,16789.0,16788.0,12.86014762]
[1672998246207,0.08303729,16789.0,16788.0,12.86014763]
[1672998246471,0.08303729,16789.0,16788.0,12.86014808]
[1672998247257,0.08303729,16789.0,16788.0,13.46014808]
[1672998250082,0.08303729,16789.0,16788.0,13.42381157]
[1672998253713,0.08303729,16789.0,16788.0,13.41381157]
[1672998254248,0.08303729,16789.0,16788.0,14.01381157]
[1672998254507,0.08303729,16789.0,16788.0,13.62888752]
[1672998255793,0.08303729,16789.0,16788.0,14.1737074]
[1672998257603,1e-08,16789.0,16788.0,14.1737074]
[1672998257898,0.07515581,16789.0,16788.0,14.84389199]
[1672998258589,0.07515581,16789.0,16788.0,14.24389199]
[1672998258841,0.07515581,16789.0,16788.0,13.5737074]
[1672998259606,0.07515581,16789.0,16788.0,14.21335417]
[1672998260111,0.07515581,16789.0,16788.0,14.39204443]
[1672998260609,0.07515581,16789.0,16788.0,14.03466849]
[1672998260862,0.07515581,16789.0,16788.0,14.39204443]
[1672998261118,0.07515581,16789.0,16788.0,14.03466849]
[1672998261358,0.07515581,16789.0,16788.0,13.75239766]
[1672998261604,0.07515581,16789.0,16788.0,13.39502172]
[1672998261851,0.07515581,16789.0,16788.0,14.1079868]
[1672998262100,0.07515581,16789.0,16788.0,14.46536274]
[1672998262350,0.07515581,16789.0,16788.0,13.5737074]
[1672998262602,0.07515581,16789.0,16788.0,14.1737074]
[1672998263133,0.07515581,16789.0,16788.0,13.4347074]
[1672998263388,0.07515581,16789.0,16788.0,13.75239687]
[1672998263638,0.07515581,16789.0,16788.0,13.61339687]
[1672998263897,0.07515581,16789.0,16788.0,13.75239687]
[1672998264159,0.07515581,16789.0,16788.0,14.33604516]
[1672998264407,0.07515581,16789.0,16788.0,14.1737074]
[1672998266567,0.07515581,16789.0,16788.0,14.68605143]
[1672998266868,0.07515581,16789.0,16788.0,14.1737074]
[1672998269499,0.07515581,16789.0,16788.0,14.62039597]
[1672998269746,0.07515581,16789.0,16788.0,14.35233321]
[1672998271326,0.07515581,16789.0,16788.0,14.6203567]
[1672998271589,0.07515581,16789.0,16788.0,14.35233321]
[1672998276022,0.07515581,16789.0,16788.0,13.99495727]
[1672998277277,0.07515581,16789.0,16788.0,14.3523089]
[1672998277539,0.07515581,16789.0,16788.0,13.99495727]
[1672998279180,0.07515581,16789.0,16788.0,14.35229244]
[1672998279973,0.07515581,16789.0,16788.0,13.75229244]
[1672998280492,0.07515581,16789.0,16788.0,14.22029951]
[1672998281030,0.07515581,16789.0,16788.0,14.63918745]
[1672998281554,0.07515581,16789.0,16788.0,14.22030272]
[1672998281813,0.07515581,16789.0,16788.0,14.85607163]
[1672998282365,0.07515581,16789.0,16788.0,14.40938306]
[1672998283147,0.07515581,16789.0,16788.0,14.85607163]
[1672998284196,0.07515581,16789.0,16788.0,14.58806135]
[1672998284443,0.07515581,16789.0,16788.0,14.85609795]
[1672998284716,0.07515581,16789.0,16788.0,14.22032904]
[1672998284964,0.07515581,16789.0,16788.0,13.95229244]
[1672998285224,0.07515581,16789.0,16788.0,14.54415638]
[1672998286730,0.07515581,16789.0,16788.0,14.81222481]
[1672998286993,0.07515581,16789.0,16788.0,14.36553624]
[1672998287516,0.07515581,16789.0,16788.0,13.95229244]
[1672998287718,0.00348586,16790.0,16789.0,0.5]
[1672998287967,0.00348586,16790.0,16789.0,4.38964241]
[1672998288216,0.00348586,16790.0,16789.0,4.83633098]
[1672998288471,0.00348586,16790.0,16789.0,12.06826273]
[1672998288758,0.07304886,16790.0,16789.0,12.06826273]
[1672998289016,0.07304886,16790.0,16789.0,11.78161444]
[1672998289273,0.07304886,16790.0,16789.0,11.51358447]
[1672998290214,0.07304886,16790.0,16789.0,12.28255155]
[1672998292452,0.07304886,16790.0,16789.0,12.87649922]
[1672998293486,0.07304886,16790.0,16789.0,12.73649922]
[1672998293743,0.07304886,16790.0,16789.0,12.87549922]
[1672998294536,0.07304886,16790.0,16789.0,12.73649922]
[1672998294789,0.07304886,16790.0,16789.0,12.87549922]
[1672998297105,0.07304886,16790.0,16789.0,12.81903967]
[1672998297363,0.07304886,16790.0,16789.0,12.27549922]
[1672998297674,0.07304886,16790.0,16789.0,12.09677615]
[1672998297911,0.07304886,16790.0,16789.0,12.06780907]
[1672998299919,0.07304886,16790.0,16789.0,12.68376152]
[1672998301476,0.07304886,16790.0,16789.0,12.06780907]
[1672998301736,0.07304886,16790.0,16789.0,12.70425777]
[1672998301957,0.07304886,16790.0,16789.0,12.55448077]
[1672998302210,0.07304886,16790.0,16789.0,12.51471209]
[1672998302912,0.07304886,16790.0,16789.0,12.69348077]
[1672998303409,0.07304886,16790.0,16789.0,12.55448077]
[1672998303673,0.07304886,16790.0,16789.0,12.69348077]
[1672998304378,0.07304886,16790.0,16789.0,12.05703207]
[1672998305387,0.07304886,16790.0,16789.0,13.20577032]
[1672998306435,0.07304886,16790.0,16789.0,12.61171033]
[1672998306684,0.07304886,16790.0,16789.0,13.3297639]
[1672998307466,0.07304886,16790.0,16789.0,13.50844341]
[1672998307727,0.07170829,16790.0,16789.0,13.3297639]
[1672998307971,0.07170829,16790.0,16789.0,12.61171033]
[1672998308480,0.07170829,16790.0,16789.0,13.20699448]
[1672998309487,0.07170829,16790.0,16789.0,12.61171033]
[1672998309755,0.07170829,16790.0,16789.0,4.32549885]
[1672998310013,0.30938618,16790.0,16789.0,2.92095553]
[1672998310311,0.25004112,16790.0,16789.0,1.9850719]
[1672998310552,0.25004112,16790.0,16789.0,2.5806999]
[1672998310797,0.07170829,16790.0,16789.0,2.5806999]
[1672998311598,0.07170829,16790.0,16789.0,1.9850719]
[1672998311826,0.07170829,16790.0,16789.0,2.5806999]
[1672998312626,0.07170829,16790.0,16789.0,1.9850719]
[1672998313411,0.25004112,16790.0,16789.0,1.9850719]
[1672998313664,0.25004112,16790.0,16789.0,1.3809439]
[1672998314228,0.25004112,16790.0,16789.0,1.00309478]
[1672998314448,0.25004112,16790.0,16789.0,0.80309478]
[1672998314707,0.25004112,16790.0,16789.0,1.30309478]
[1672998315216,0.07170829,16790.0,16789.0,1.30309478]
[1672998316233,0.07170829,16790.0,16789.0,1.89872278]
[1672998316482,0.07170829,16790.0,16789.0,2.36047144]
[1672998316683,0.07170829,16790.0,16789.0,1.76484344]
[1672998316966,0.07170829,16790.0,16789.0,1.26484344]
[1672998317236,0.25004112,16790.0,16789.0,0.80309478]
[1672998317770,0.51725005,16790.0,16789.0,0.80309478]
[1672998318047,0.25004112,16790.0,16789.0,0.80309478]
[1672998318496,0.25004112,16790.0,16789.0,1.20309478]
[1672998318721,0.25004112,16790.0,16789.0,0.80309478]
[1672998319721,0.25004112,16790.0,16789.0,1.30309478]
[1672998321450,0.25004112,16790.0,16789.0,0.80309478]
[1672998321703,0.25004112,16790.0,16789.0,1.04296746]
[1672998322230,0.25004112,16790.0,16789.0,1.30309478]
[1672998322972,0.25004112,16790.0,16789.0,1.89872278]
[1672998323231,0.07170829,16790.0,16789.0,0.80309478]
[1672998323480,0.25004112,16790.0,16789.0,0.80309478]
[1672998324999,0.25004112,16790.0,16789.0,1.30309478]
[1672998325284,0.25004112,16790.0,16789.0,1.59296816]
[1672998326263,0.07170829,16790.0,16789.0,1.59296816]
[1672998326532,0.25004112,16790.0,16789.0,1.59296816]
[1672998326776,0.25004112,16790.0,16789.0,1.30309478]
[1672998327268,0.25004112,16790.0,16789.0,0.80309478]
[1672998327528,0.25004112,16790.0,16789.0,1.30309478]
[1672998330566,0.25004112,16790.0,16789.0,0.80309478]
[1672998332336,0.25004112,16790.0,16789.0,1.30299727]
[1672998332833,0.25004112,16790.0,16789.0,0.80299727]
[1672998333084,0.25004112,16790.0,16789.0,0.13890249]
[1672998333312,0.86173812,16790.0,16789.0,0.13890249]
[1672998333569,1.12894705,16790.0,16789.0,0.13890249]
[1672998333781,0.44768705,16790.0,16789.0,0.13890249]
[1672998337286,0.62576211,16790.0,16789.0,0.13890249]
[1672998337848,0.71116707,16790.0,16789.0,0.13890249]
[1672998342548,0.71116707,16790.0,16789.0,0.75831971]
[1672998342793,0.5328471,16790.0,16789.0,0.75831971]
[1672998343804,0.88925499,16790.0,16789.0,0.75831971]
[1672998344064,0.71116707,16790.0,16789.0,0.75831971]
[1672998346813,1.15682201,16790.0,16789.0,0.75831971]
[1672998347063,0.71116707,16790.0,16789.0,0.75831971]
[1672998347346,1.15682201,16790.0,16789.0,0.75831971]
[1672998347571,0.71116707,16790.0,16789.0,0.75831971]
[1672998348079,0.88961308,16790.0,16789.0,0.75831971]
[1672998353632,0.88961308,16790.0,16789.0,0.7582073]
[1672998356474,0.88961308,16790.0,16789.0,1.04402803]
[1672998356726,0.71146322,16790.0,16789.0,0.7582073]
[1672998357749,0.889799,16790.0,16789.0,0.7582073]
[1672998358004,0.53339111,16790.0,16789.0,1.3538353]
[1672998362667,0.53339111,16790.0,16789.0,0.7582073]
[1672998363703,0.35505533,16790.0,16789.0,0.7582073]
[1672998367238,0.71146322,16790.0,16789.0,0.7582073]
[1672998368009,0.88978173,16790.0,16789.0,0.7582073]
[1672998368243,0.88977999,16790.0,16789.0,0.7582073]
[1672998368460,0.71146322,16790.0,16789.0,0.7582073]
[1672998370155,0.88981165,16790.0,16789.0,0.7582073]
[1672998370631,0.20159838,16791.0,16789.0,0.7582073]
[1672998370878,0.20159838,16791.0,16790.0,0.61317922]
[1672998371883,0.28187016,16791.0,16790.0,0.61317922]
[1672998372147,0.28187016,16791.0,16790.0,0.75317922]
[1672998372722,0.28179552,16791.0,16790.0,0.75317922]
[1672998373671,0.08027178,16791.0,16790.0,0.75317922]
[1672998377000,0.67582878,16791.0,16790.0,0.75317922]
[1672998377533,0.7310802,16791.0,16790.0,0.75317922]
[1672998378316,1.17691409,16791.0,16790.0,0.75317922]
[1672998379139,1.17693371,16791.0,16790.0,0.75317922]
[1672998384879,0.7310802,16791.0,16790.0,0.75317922]
[1672998385373,1.17699629,16791.0,16790.0,0.75317922]
[1672998385875,0.7310802,16791.0,16790.0,0.75317922]
[1672998386587,1.177004,16791.0,16790.0,0.75317922]
[1672998386839,1.17701253,16791.0,16790.0,0.75317922]
[1672998387331,0.7310802,16791.0,16790.0,0.75317922]
[1672998388803,0.1355232,16791.0,16790.0,0.75317922]
[1672998393743,0.7310802,16791.0,16790.0,0.14]
[1672998394001,1.3427772,16791.0,16790.0,0.14]
[1672998394495,0.7310802,16791.0,16790.0,0.14]
[1672998396216,1.86143741,16791.0,16790.0,0.14]
[1672998397183,1.3266372,16791.0,16790.0,0.14]
[1672998397426,1.9383342,16791.0,16790.0,0.14027625]
[1672998397688,1.3427772,16791.0,16790.0,0.14027625]
[1672998397945,0.7310802,16791.0,16790.0,0.13991281]
[1672998398938,0.58149354,16791.0,16790.0,0.13991281]
[1672998404973,0.1355232,16791.0,16790.0,0.13991281]
[1672998405233,0.58154262,16791.0,16790.0,0.13991281]
[1672998405490,0.1355232,16791.0,16790.0,0.13991281]
[1672998407053,0.58155956,16791.0,16790.0,0.13991281]
[1672998407825,0.1355232,16791.0,16790.0,0.13991281]
[1672998408419,0.58156026,16791.0,16790.0,0.13991281]
[1672998408674,1.19325726,16791.0,16790.0,0.13991281]
[1672998408896,0.7472202,16791.0,16790.0,0.13991281]
[1672998409167,0.1355232,16791.0,16790.0,0.13991281]
[1672998409943,0.58155704,16791.0,16790.0,0.63991281]
[1672998410194,0.52630562,16791.0,16790.0,0.13991281]
[1672998411026,0.52630562,16791.0,16790.0,0.63991281]
[1672998411240,0.52630562,16791.0,16790.0,0.13991281]
[1672998411795,0.52630562,16791.0,16790.0,0.53991281]
[1672998412333,0.52630562,16791.0,16790.0,0.13991281]
[1672998416435,1.13800262,16791.0,16790.0,0.13991281]
[1672998416662,1.73355962,16791.0,16790.0,0.13991281]
[1672998416913,0.67582878,16791.0,16790.0,0.13991281]
[1672998418703,0.67582878,16791.0,16790.0,0.13980461]
[1672998419596,1.80618599,16791.0,16790.0,0.13980461]
[1672998421177,1.27138578,16791.0,16790.0,0.13980461]
[1672998421429,0.67582878,16791.0,16790.0,0.13980461]
[1672998422180,1.21062899,16791.0,16790.0,0.13980461]
[1672998422441,0.67582878,16791.0,16790.0,0.13980461]
[1672998422926,1.21062899,16791.0,16790.0,0.13980461]
[1672998425086,1.80618599,16791.0,16790.0,0.13980461]
[1672998425307,2.05174043,16791.0,16790.0,0.13980461]
[1672998426339,1.45618343,16791.0,16790.0,0.13980461]
[1672998426583,1.21062899,16791.0,16790.0,0.13980461]
[1672998428055,1.80618599,16791.0,16790.0,0.13980461]
[1672998429326,1.21062899,16791.0,16790.0,0.13980461]
[1672998433076,0.67582878,16791.0,16790.0,0.6923059]
[1672998436860,1.28752578,16791.0,16790.0,0.6923059]
[1672998437118,0.67582878,16791.0,16790.0,0.6923059]
[1672998438673,1.12179487,16791.0,16790.0,0.6923059]
[1672998439198,0.67582878,16791.0,16790.0,0.6923059]
[1672998439725,1.12178341,16791.0,16790.0,0.6923059]
[1672998440533,0.67582878,16791.0,16790.0,0.6923059]
[1672998443137,0.67582878,16791.0,16790.0,0.69219129]
[1672998448752,0.86182782,16791.0,16790.0,0.69219129]
[1672998450303,0.67582878,16791.0,16790.0,0.69219129]
[1672998450557,0.08027178,16791.0,16790.0,0.69219129]
[1672998451105,0.52625467,16791.0,16790.0,0.69219129]
[1672998451825,0.08027178,16791.0,16790.0,0.69219129]
[1672998453325,0.52627762,16791.0,16790.0,0.69219129]
[1672998453824,0.52627955,16791.0,16790.0,0.69219129]
[1672998459909,0.52627955,16791.0,16790.0,1.19219129]
[1672998460421,0.52627955,16791.0,16790.0,2.34424265]
[1672998460673,0.88307025,16791.0,16790.0,3.27425892]
[1672998460925,0.52623499,16791.0,16790.0,3.27425892]
[1672998461194,0.52623499,16791.0,16790.0,2.93983465]
[1672998461450,0.52623499,16791.0,16790.0,2.38778329]
[1672998463510,0.52623499,16791.0,16790.0,2.98337529]
[1672998464561,0.52623499,16791.0,16790.0,2.98373873]
[1672998464789,0.52623499,16791.0,16790.0,3.53579009]
[1672998465044,0.25862742,16791.0,16790.0,3.53579009]
[1672998467536,0.25862742,16791.0,16790.0,2.98373873]
[1672998468058,0.52623499,16791.0,16790.0,2.98373873]
[1672998468564,0.25862742,16791.0,16790.0,2.98373873]
[1672998468810,0.17835564,16791.0,16790.0,2.98373873]
[1672998469553,0.17835564,16791.0,16790.0,3.12905021]
[1672998470062,0.17835564,16791.0,16790.0,3.68110157]
[1672998470316,0.17835564,16791.0,16790.0,3.12905021]
[1672998470563,0.17835564,16791.0,16790.0,3.68110157]
[1672998471133,0.17835564,16791.0,16790.0,3.12905021]
[1672998471893,0.17835564,16791.0,16790.0,3.68110157]
[1672998472144,0.17835564,16791.0,16790.0,3.12905021]
[1672998473805,0.81060438,16792.0,16791.0,0.5]
[1672998474338,0.81060438,16792.0,16791.0,0.86290202]
[1672998474566,0.4536995,16792.0,16791.0,0.86290202]
[1672998475054,0.8104902,16792.0,16791.0,0.86290202]
[1672998475313,0.8104902,16792.0,16791.0,1.00290202]
[1672998475560,0.4536995,16792.0,16791.0,1.00290202]
[1672998475813,0.4536995,16792.0,16791.0,2.241097]
[1672998476317,0.4536995,16792.0,16791.0,2.836654]
[1672998476832,0.18609193,16792.0,16791.0,4.38870536]
[1672998477598,0.18609193,16792.0,16791.0,4.02580334]
[1672998477870,0.00785047,16792.0,16791.0,4.02580334]
[1672998478873,0.08464616,16792.0,16791.0,4.02580334]
[1672998479142,0.08464616,16792.0,16791.0,3.47375198]
[1672998479402,0.70823661,16792.0,16791.0,0.13990603]
[1672998479663,1.81498612,16792.0,16791.0,0.13990603]
[1672998479948,1.20328912,16792.0,16791.0,0.13990603]
[1672998480203,0.93603723,16792.0,16791.0,0.13990603]
[1672998481710,1.20329615,16792.0,16791.0,0.13990603]
[1672998482746,0.93603723,16792.0,16791.0,0.13990603]
[1672998488788,0.57969983,16792.0,16791.0,0.13990603]
[1672998490475,0.93613739,16792.0,16791.0,0.13990603]
[1672998490718,0.57969983,16792.0,16791.0,0.13990603]
[1672998491226,0.93618337,16792.0,16791.0,0.13990603]
[1672998491717,0.57969983,16792.0,16791.0,0.13990603]
[1672998492231,0.93618,16792.0,16791.0,0.63990603]
[1672998494031,0.93618,16792.0,16791.0,0.13990603]
[1672998496595,0.93618,16792.0,16791.0,0.63990603]
[1672998497082,0.93618,16792.0,16791.0,0.13990603]
[1672998498591,0.93618,16792.0,16791.0,0.63990603]
[1672998502580,0.88654808,16792.0,16791.0,0.63990603]
[1672998503083,0.88654808,16792.0,16791.0,0.63984097]
[1672998504080,0.88654808,16792.0,16791.0,1.23539797]
[1672998504334,0.88654808,16792.0,16791.0,1.9469177]
[1672998505595,1.15405405,16792.0,16791.0,2.49896906]
[1672998505840,0.7086323,16792.0,16791.0,1.9469177]
[1672998509207,0.88654808,16792.0,16791.0,1.9469177]
[1672998509713,0.80975239,16792.0,16791.0,1.9469177]
[1672998517784,0.80975239,16792.0,16791.0,3.09452606]
[1672998517785,0.45374288,16792.0,16791.0,3.09452606]
[1672998520505,0.45374288,16792.0,16791.0,3.09462309]
[1672998521010,0.18620673,16792.0,16791.0,3.09462309]
[1672998522471,0.18620673,16792.0,16791.0,3.69462309]
[1672998525906,0.18620673,16792.0,16791.0,3.14257173]
[1672998528191,0.18620673,16792.0,16791.0,3.69462309]
[1672998528441,0.18620673,16792.0,16791.0,3.14257173]
[1672998531855,0.18620673,16792.0,16791.0,3.68655006]
[1672998532049,0.18620673,16792.0,16791.0,3.14257173]
[1672998532539,0.18620673,16792.0,16791.0,3.68134966]
[1672998534552,0.18620673,16792.0,16791.0,3.14257173]
[1672998539481,0.45374288,16792.0,16791.0,2.5424747]
[1672998541012,0.81022305,16792.0,16791.0,2.5424747]
[1672998541265,0.45374288,16792.0,16791.0,2.5424747]
[1672998541522,0.63186679,16792.0,16791.0,2.5361577]
[1672998541776,0.63186679,16792.0,16791.0,1.9406007]
[1672998542060,0.63186679,16792.0,16791.0,1.4406007]
[1672998542794,0.63186679,16792.0,16791.0,0.8450437]
[1672998543051,0.63186679,16792.0,16791.0,0.84524096]
[1672998543333,0.80975239,16792.0,16791.0,0.8450437]
[1672998544055,0.80975239,16792.0,16791.0,0.13352397]
[1672998544307,0.45327222,16792.0,16791.0,0.13352397]
[1672998544578,0.67196971,16792.0,16791.0,0.13352397]
[1672998544846,1.28366671,16792.0,16791.0,0.13352397]
[1672998545093,0.67196971,16792.0,16791.0,0.13352397]
[1672998546095,0.45327222,16792.0,16791.0,0.13372123]
[1672998547081,0.80983821,16792.0,16791.0,0.13372123]
[1672998548073,0.80983821,16792.0,16791.0,0.13352397]
[1672998548832,0.81024921,16792.0,16791.0,0.13352397]
[1672998549342,0.81024921,16792.0,16791.0,0.13359145]
[1672998549599,0.45368322,16792.0,16791.0,0.13359145]
[1672998549866,0.45368322,16792.0,16791.0,0.13352397]
[1672998550130,0.61894229,16792.0,16791.0,0.13352397]
[1672998550398,0.61894229,16792.0,16791.0,0.13359145]
[1672998551112,0.45368322,16792.0,16791.0,0.13359145]
[1672998551608,0.81017452,16792.0,16791.0,0.13359145]
[1672998553433,0.86739247,16792.0,16791.0,0.13359145]
[1672998553713,0.51090117,16792.0,16791.0,0.13352397]
[1672998554195,0.51090117,16792.0,16791.0,0.13371475]
[1672998554444,0.51090117,16792.0,16791.0,0.13352397]
[1672998555451,0.51090117,16792.0,16791.0,0.13377885]
[1672998555702,0.51090117,16792.0,16791.0,0.13352397]
[1672998557512,0.86731916,16792.0,16791.0,0.13352397]
[1672998561750,0.86731916,16792.0,16791.0,0.13343373]
[1672998566212,0.51090117,16792.0,16791.0,0.13343373]
[1672998566962,0.86731193,16792.0,16791.0,0.13343373]
[1672998567212,0.86731901,16792.0,16791.0,0.13343373]
[1672998567467,1.22374059,16792.0,16791.0,0.13343373]
[1672998569236,1.22374059,16792.0,16791.0,0.63343373]
[1672998569494,1.22374059,16792.0,16791.0,0.13343373]
[1672998573014,0.86731901,16792.0,16791.0,0.13343373]
[1672998573739,0.86731901,16792.0,16791.0,0.43343373]
[1672998574002,1.22386062,16792.0,16791.0,0.43343373]
[1672998574758,1.29886866,16792.0,16791.0,0.13343373]
[1672998575239,1.29886866,16792.0,16791.0,1.22899073]
[1672998577759,1.29886866,16792.0,16791.0,0.72899073]
[1672998579279,1.29886866,16792.0,16791.0,0.72924561]
[1672998579280,1.29912512,16792.0,16791.0,0.72924561]
[1672998579495,1.29912512,16792.0,16791.0,1.22924561]
[1672998579778,1.29912587,16792.0,16791.0,1.22924561]
[1672998580516,1.29912587,16792.0,16791.0,0.72924561]
[1672998581013,1.29912587,16792.0,16791.0,1.22924561]
[1672998581843,1.29912587,16792.0,16791.0,0.72924561]
[1672998582087,0.94232705,16792.0,16791.0,0.72924561]
[1672998582711,0.94232705,16792.0,16791.0,1.22924561]
[1672998583192,0.94232705,16792.0,16791.0,1.229126]
[1672998584950,0.86731901,16792.0,16791.0,1.229126]
[1672998587216,1.22413068,16792.0,16791.0,1.229126]
[1672998587965,1.2241191,16792.0,16791.0,1.229126]
[1672998589229,1.16690115,16792.0,16791.0,1.229126]
[1672998593453,1.16690115,16792.0,16791.0,0.729126]
[1672998593690,1.16690115,16792.0,16791.0,1.229126]
[1672998597188,1.16690115,16792.0,16791.0,0.729126]
[1672998598134,1.16690115,16792.0,16791.0,1.129126]
[1672998601460,1.15614715,16792.0,16791.0,1.129126]
[1672998602429,1.15614715,16792.0,16791.0,1.26768581]
[1672998602654,1.15614715,16792.0,16791.0,1.86324281]
[1672998602913,1.42375009,16792.0,16791.0,2.58019445]
[1672998603166,0.98123187,16792.0,16791.0,2.58019445]
[1672998603461,0.71362893,16792.0,16791.0,2.58019445]
[1672998603954,0.71362893,16792.0,16791.0,2.44163464]
[1672998604197,0.71362893,16792.0,16791.0,1.84582276]
[1672998606499,0.98124206,16792.0,16791.0,2.44137976]
[1672998607281,0.98124206,16792.0,16791.0,1.84582276]
[1672998608285,0.98124206,16792.0,16791.0,2.44137976]
[1672998608817,1.42726702,16792.0,16791.0,1.44582276]
[1672998609084,0.98124206,16792.0,16791.0,1.44582276]
[1672998610598,0.98124206,16792.0,16791.0,2.04137976]
[1672998610836,0.98124206,16792.0,16791.0,2.04144176]
[1672998611560,0.98124206,16792.0,16791.0,1.44588476]
[1672998612869,0.98124206,16792.0,16791.0,2.04144176]
[1672998613123,0.80285008,16792.0,16791.0,2.04144176]
[1672998613377,0.98124206,16792.0,16791.0,2.04144176]
[1672998614142,0.98124206,16792.0,16791.0,1.44588476]
[1672998615666,1.42726702,16792.0,16791.0,1.44582276]
[1672998615943,1.15965389,16792.0,16791.0,1.44582276]
[1672998616718,1.4272948,16792.0,16791.0,1.44582276]
[1672998616936,0.98126984,16792.0,16791.0,1.44582276]
[1672998619267,0.98126984,16792.0,16791.0,1.44588476]
[1672998620274,1.4272948,16792.0,16791.0,1.44588476]
[1672998620496,0.98126984,16792.0,16791.0,1.44588476]
[1672998621512,1.4272948,16792.0,16791.0,1.44588476]
[1672998622510,1.15965389,16792.0,16791.0,1.44588476]
[1672998623009,1.15965389,16792.0,16791.0,0.72893312]
[1672998623257,1.15965389,16792.0,16791.0,0.72887112]
[1672998623512,0.8028538,16792.0,16791.0,0.13323998]
[1672998626735,1.15971024,16792.0,16791.0,0.13323998]
[1672998627001,1.15970687,16792.0,16791.0,0.13330198]
[1672998627262,0.8028538,16792.0,16791.0,0.13330198]
[1672998627796,1.15970729,16792.0,16791.0,0.13330198]
[1672998628306,0.8028538,16792.0,16791.0,0.13330198]
[1672998629877,0.8028538,16792.0,16791.0,0.63330198]
[1672998630371,0.8028538,16792.0,16791.0,0.13330198]
[1672998631885,0.8028538,16792.0,16791.0,0.13323998]
[1672998632135,1.4145508,16792.0,16791.0,0.13323998]
[1672998632410,0.8028538,16792.0,16791.0,0.63323998]
[1672998632653,0.8028538,16792.0,16791.0,0.13323998]
[1672998633720,1.77138071,16792.0,16791.0,0.13323998]
[1672998633896,1.15968371,16792.0,16791.0,0.13323998]
[1672998634161,0.8028538,16792.0,16791.0,0.13323998]
[1672998635380,1.15967753,16792.0,16791.0,0.13330198]
[1672998635636,0.8028538,16792.0,16791.0,0.13330198]
[1672998639565,1.4145508,16792.0,16791.0,0.13323998]
[1672998640072,0.8028538,16792.0,16791.0,0.13323998]
[1672998641566,1.15965469,16792.0,16791.0,0.63323998]
[1672998642035,1.15965469,16792.0,16791.0,1.28830918]
[1672998643068,1.15965469,16792.0,16791.0,1.38392818]
[1672998652339,1.15965469,16792.0,16791.0,1.38386618]
[1672998653098,1.15965469,16792.0,16791.0,0.78822079]
[1672998653314,1.15953711,16792.0,16791.0,0.78822079]
[1672998654332,0.80273622,16792.0,16791.0,0.78822079]
[1672998655997,0.80273622,16792.0,16791.0,0.78828279]
[1672998656518,1.15959548,16792.0,16791.0,0.78828279]
[1672998657026,1.15959548,16792.0,16791.0,1.28828279]
[1672998658050,1.15959548,16792.0,16791.0,0.78828279]
[1672998658286,1.15959548,16792.0,16791.0,1.28828279]
[1672998658537,1.15959548,16792.0,16791.0,1.88383979]
[1672998661545,1.15959548,16792.0,16791.0,1.38383979]
[1672998662593,1.15959548,16792.0,16791.0,1.38377779]
[1672998664418,1.14959548,16792.0,16791.0,1.38377779]
[1672998666383,1.14959548,16792.0,16791.0,1.38383979]
[1672998669841,0.62452328,16792.0,16791.0,2.53144815]
[1672998670345,0.62452328,16792.0,16791.0,1.97939679]
[1672998671593,0.80295209,16792.0,16791.0,1.97939679]
[1672998671836,0.80295237,16792.0,16791.0,1.97939679]
[1672998672370,0.44609311,16792.0,16791.0,1.97939679]
[1672998672629,0.34609311,16792.0,16791.0,2.57327392]
[1672998675700,0.34609311,16792.0,16791.0,2.52969229]
[1672998676215,0.34609311,16792.0,16791.0,1.97939679]
[1672998681599,0.17842909,16792.0,16791.0,1.97939679]
[1672998681851,0.17842909,16792.0,16791.0,2.52969229]
[1672998684318,0.17842909,16792.0,16791.0,1.97939679]
[1672998684832,0.17842909,16792.0,16791.0,2.52969229]
[1672998685085,0.17842909,16792.0,16791.0,3.42356942]
[1672998685348,0.17842909,16792.0,16791.0,3.12356942]
[1672998685632,0.17842909,16792.0,16791.0,10.62356942]
[1672998686139,0.70677543,16793.0,16792.0,1.03423071]
[1672998686400,0.70677543,16793.0,16792.0,4.36944534]
[1672998686640,0.52834634,16793.0,16792.0,3.31914984]
[1672998686909,0.52834634,16793.0,16792.0,2.72362884]
[1672998687162,0.52834634,16793.0,16792.0,2.12975171]
[1672998687907,0.34986313,16793.0,16792.0,2.82004721]